[Event "Schack-SM 2024: Veteran-SM 65+"]
[Site "Fortnox Arena, Hejaregatan 5, Vaxjo, Sweden"]
[Date "2024.07.06"]
[Round "8.2"]
[White "Lagerborg, Krister"]
[Black "Hedin, Gunnar"]
[Result "0-1"]
[TimeControl "90 minutes for 40 moves + 30 minutes for the rest of the game + 30 seconds per move from move one."]
[WhiteElo "2091"]
[BlackElo "2064"]

1. e4 {[%clk 01:30:56]} {[%emt 00:00:04]} e6 {[%clk 01:30:54]} {[%emt
00:00:06]} 2. Qe2 {[%clk 01:31:21]} {[%emt 00:00:05]} c5 {[%clk 01:31:10]}
{[%emt 00:00:15]} 3. f4 {[%clk 01:31:38]} {[%emt 00:00:13]} Nc6 {[%clk
01:31:28]} {[%emt 00:00:13]} 4. c3 {[%clk 01:32:01]} {[%emt 00:00:05]} Be7
{[%clk 01:30:35]} {[%emt 00:01:23]} 5. Nf3 {[%clk 01:32:23]} {[%emt 00:00:07]}
d5 {[%clk 01:30:51]} {[%emt 00:00:16]} 6. d3 {[%clk 01:32:47]} {[%emt
00:00:05]} Nf6 {[%clk 01:30:34]} {[%emt 00:00:48]} 7. e5 {[%clk 01:33:02]}
{[%emt 00:00:14]} Nd7 {[%clk 01:30:37]} {[%emt 00:00:28]} 8. g3 {[%clk
01:33:24]} {[%emt 00:00:07]} O-O {[%clk 01:30:09]} {[%emt 00:00:59]} 9. Bg2
{[%clk 01:33:15]} {[%emt 00:00:38]} b5 {[%clk 01:28:33]} {[%emt 00:02:06]} 10.
O-O {[%clk 01:33:35]} {[%emt 00:00:10]} Nb6 {[%clk 01:28:40]} {[%emt 00:00:23]}
11. Be3 {[%clk 01:30:39]} {[%emt 00:03:25]} Ba6 {[%clk 01:01:00]} {[%emt
00:28:11]} 12. Nbd2 {[%clk 01:30:25]} {[%emt 00:00:44]} Qd7 {[%clk 00:43:26]}
{[%emt 00:18:04]} 13. Bf2 {[%clk 01:29:10]} {[%emt 00:01:44]} Na4 {[%clk
00:42:56]} {[%emt 00:01:01]} 14. Rab1 {[%clk 01:24:01]} {[%emt 00:05:39]} Rab8
{[%clk 00:38:23]} {[%emt 00:05:04]} 15. Rfc1 {[%clk 01:14:48]} {[%emt
00:09:41]} c4 {[%clk 00:33:20]} {[%emt 00:05:35]} 16. b4 {[%clk 01:04:06]}
{[%emt 00:11:11]} f6 {[%clk 00:25:41]} {[%emt 00:08:08]} 17. d4 {[%clk
01:02:01]} {[%emt 00:02:35]} f5 {[%clk 00:23:32]} {[%emt 00:02:41]} 18. a3
{[%clk 00:59:02]} {[%emt 00:03:28]} Bb7 {[%clk 00:23:48]} {[%emt 00:00:13]} 19.
Be3 {[%clk 00:57:01]} {[%emt 00:02:31]} a5 {[%clk 00:23:12]} {[%emt 00:01:08]}
20. Nf1 {[%clk 00:56:16]} {[%emt 00:01:13]} axb4 {[%clk 00:23:24]} {[%emt
00:00:19]} 21. axb4 {[%clk 00:56:01]} {[%emt 00:00:45]} Nxc3 {[%clk 00:21:18]}
{[%emt 00:02:35]} 22. Rxc3 {[%clk 00:56:23]} {[%emt 00:00:09]} Nxb4 {[%clk
00:21:35]} {[%emt 00:00:12]} 23. Ne1 {[%clk 00:52:06]} {[%emt 00:04:47]} Ra8
{[%clk 00:21:27]} {[%emt 00:00:39]} 24. g4 {[%clk 00:51:30]} {[%emt 00:01:05]}
g6 {[%clk 00:20:15]} {[%emt 00:01:43]} 25. Ng3 {[%clk 00:46:46]} {[%emt
00:05:14]} Ra2 {[%clk 00:19:36]} {[%emt 00:01:09]} 26. Rb2 {[%clk 00:45:27]}
{[%emt 00:01:48]} Rfa8 {[%clk 00:19:25]} {[%emt 00:00:41]} 27. gxf5 {[%clk
00:45:20]} {[%emt 00:00:38]} exf5 {[%clk 00:19:43]} {[%emt 00:00:11]} 28. Rc1
{[%clk 00:41:34]} {[%emt 00:04:17]} Bc6 {[%clk 00:19:01]} {[%emt 00:01:13]} 29.
Rcb1 {[%clk 00:40:30]} {[%emt 00:01:33]} Rxb2 {[%clk 00:17:49]} {[%emt
00:01:41]} 30. Rxb2 {[%clk 00:40:40]} {[%emt 00:00:21]} Ra1 {[%clk 00:18:07]}
{[%emt 00:00:13]} 31. Kf2 {[%clk 00:37:44]} {[%emt 00:03:25]} Qa7 {[%clk
00:17:23]} {[%emt 00:01:15]} 32. Rxb4 {[%clk 00:18:33]} {[%emt 00:19:40]} Bxb4
{[%clk 00:17:07]} {[%emt 00:00:46]} 33. Nc2 {[%clk 00:18:45]} {[%emt 00:00:18]}
Ra2 {[%clk 00:17:13]} {[%emt 00:00:24]} 34. Nxb4 {[%clk 00:19:05]} {[%emt
00:00:10]} Rxe2+ {[%clk 00:17:23]} {[%emt 00:00:21]} 35. Nxe2 {[%clk 00:19:25]}
{[%emt 00:00:08]} Ba8 {[%clk 00:11:48]} {[%emt 00:06:06]} 36. Nxd5 {[%clk
00:17:19]} {[%emt 00:02:36]} Kg7 {[%clk 00:10:14]} {[%emt 00:02:04]} 37. Bd2
{[%clk 00:15:45]} {[%emt 00:02:04]} Qa2 {[%clk 00:05:57]} {[%emt 00:04:45]} 38.
Ndc3 {[%clk 00:14:32]} {[%emt 00:01:45]} Qxd2 {[%clk 00:05:41]} {[%emt
00:00:46]} 39. Bxa8 {[%clk 00:14:20]} {[%emt 00:00:43]} b4 {[%clk 00:05:55]}
{[%emt 00:00:15]} 40. Nd5 {[%clk 00:11:19]} {[%emt 00:03:30]} Qa2 {[%clk
00:03:38]} {[%emt 00:02:48]} 41. Bc6 {[%clk 00:06:49]} {[%emt 00:05:01]} Qa6
{[%clk 00:29:46]} {[%emt 00:04:21]} 42. Bd7 {[%clk 00:30:41]} {[%emt 00:06:38]}
Qb7 {[%clk 00:27:39]} {[%emt 00:02:38]} 43. Nf6 {[%clk 00:29:39]} {[%emt
00:01:31]} b3 {[%clk 00:24:28]} {[%emt 00:03:40]} 44. Ba4 {[%clk 00:25:58]}
{[%emt 00:04:12]} b2 {[%clk 00:24:30]} {[%emt 00:00:29]} 45. Bc2 {[%clk
00:26:10]} {[%emt 00:00:17]} b1=Q {[%clk 00:21:17]} {[%emt 00:03:43]} 46. Bxb1
{[%clk 00:26:30]} {[%emt 00:00:09]} Qxb1 {[%clk 00:21:45]} {[%emt 00:00:03]} 47.
Nd5 {[%clk 00:26:28]} {[%emt 00:00:30]} Qh1 {[%clk 00:20:53]} {[%emt 00:01:23]}
48. Ndc3 {[%clk 00:26:35]} {[%emt 00:00:24]} Qxh2+ {[%clk 00:20:40]} {[%emt
00:00:44]} 49. Ke3 {[%clk 00:26:53]} {[%emt 00:00:10]} Qh3+ {[%clk 00:20:45]}
{[%emt 00:00:26]} 50. Kf2 {[%clk 00:26:35]} {[%emt 00:00:47]} Qd3 {[%clk
00:20:14]} {[%emt 00:01:00]} 51. d5 {[%clk 00:26:39]} {[%emt 00:00:28]} g5
{[%clk 00:13:36]} {[%emt 00:07:07]} 52. fxg5 {[%clk 00:26:12]} {[%emt
00:00:57]} f4 {[%clk 00:13:36]} {[%emt 00:00:31]} 53. Nxf4 {[%clk 00:23:49]}
{[%emt 00:02:52]} Qxc3 {[%clk 00:13:44]} {[%emt 00:00:23]} 54. e6 {[%clk
00:23:49]} {[%emt 00:00:29]} Qe5 {[%clk 00:11:21]} {[%emt 00:02:54]} 55. Nh5+
{[%clk 00:22:53]} {[%emt 00:01:25]} Kg6 {[%clk 00:11:13]} {[%emt 00:00:39]} 56.
Nf6 {[%clk 00:22:46]} {[%emt 00:00:37]} Qxg5 {[%clk 00:10:49]} {[%emt
00:00:53]} 0-1

[Event "Schack-SM 2024: Veteran-SM 65+"]
[Site "Fortnox Arena, Hejaregatan 5, Vaxjo, Sweden"]
[Date "2024.07.06"]
[Round "8.3"]
[White "Magnussen, Pal"]
[Black "Larsson, Per-Olov"]
[Result "1/2-1/2"]
[TimeControl "90 minutes for 40 moves + 30 minutes for the rest of the game + 30 seconds per move from move one."]
[WhiteElo "1905"]
[BlackElo "1933"]

1. e4 {[%clk 01:30:56]} {[%emt 00:00:03]} c5 {[%clk 01:29:27]} {[%emt
00:01:33]} 2. Nf3 {[%clk 01:28:49]} {[%emt 00:02:38]} d6 {[%clk 01:29:41]}
{[%emt 00:00:16]} 3. d4 {[%clk 01:28:58]} {[%emt 00:00:21]} cxd4 {[%clk
01:29:49]} {[%emt 00:00:22]} 4. Nxd4 {[%clk 01:29:24]} {[%emt 00:00:04]} Nf6
{[%clk 01:30:00]} {[%emt 00:00:19]} 5. Nc3 {[%clk 01:29:47]} {[%emt 00:00:07]}
a6 {[%clk 01:30:16]} {[%emt 00:00:14]} 6. Bg5 {[%clk 01:29:57]} {[%emt
00:00:20]} Nbd7 {[%clk 01:29:53]} {[%emt 00:00:54]} 7. Qd2 {[%emt 00:01:52]} e6
{[%clk 01:27:41]} {[%emt 00:02:42]} 8. O-O-O {[%clk 01:27:53]} {[%emt
00:01:11]} Be7 {[%clk 01:24:33]} {[%emt 00:03:38]} 9. f3 {[%clk 01:24:43]}
{[%emt 00:03:41]} Qc7 {[%clk 01:23:18]} {[%emt 00:01:45]} 10. Kb1 {[%clk
01:23:12]} {[%emt 00:02:00]} h6 {[%clk 01:21:58]} {[%emt 00:01:50]} 11. Be3
{[%clk 01:20:40]} {[%emt 00:03:02]} Ne5 {[%clk 01:16:40]} {[%emt 00:05:48]} 12.
f4 {[%clk 01:04:12]} {[%emt 00:16:58]} Nc6 {[%clk 01:12:05]} {[%emt 00:05:06]}
13. Be2 {[%clk 00:59:11]} {[%emt 00:05:29]} Nxd4 {[%clk 01:02:41]} {[%emt
00:09:56]} 14. Bxd4 {[%clk 00:56:32]} {[%emt 00:03:09]} e5 {[%clk 01:02:44]}
{[%emt 00:00:26]} 15. Bf2 {[%clk 00:52:50]} {[%emt 00:04:12]} b5 {[%clk
00:59:27]} {[%emt 00:03:48]} 16. Bf3 {[%clk 00:51:34]} {[%emt 00:01:44]} Bb7
{[%clk 00:59:14]} {[%emt 00:00:44]} 17. Rhe1 {[%clk 00:51:04]} {[%emt
00:01:00]} O-O {[%clk 00:50:14]} {[%emt 00:09:31]} 18. g4 {[%clk 00:47:08]}
{[%emt 00:04:25]} exf4 {[%clk 00:45:46]} {[%emt 00:04:58]} 19. Qxf4 {[%clk
00:46:49]} {[%emt 00:00:49]} Rac8 {[%clk 00:44:36]} {[%emt 00:01:41]} 20. Rc1
{[%clk 00:46:03]} {[%emt 00:01:16]} Nd7 {[%clk 00:44:36]} {[%emt 00:00:29]} 21.
h4 {[%clk 00:44:33]} {[%emt 00:02:01]} Ne5 {[%clk 00:43:09]} {[%emt 00:01:57]}
22. Be2 {[%clk 00:42:42]} {[%emt 00:02:20]} Ng6 {[%clk 00:33:08]} {[%emt
00:10:31]} 23. Qh2 {[%clk 00:41:18]} {[%emt 00:01:53]} Bf6 {[%clk 00:31:34]}
{[%emt 00:02:05]} 24. Nd5 {[%clk 00:38:10]} {[%emt 00:03:39]} Bxd5 {[%clk
00:30:54]} {[%emt 00:01:09]} 25. exd5 {[%clk 00:38:33]} {[%emt 00:00:08]} Bxb2
{[%clk 00:29:31]} {[%emt 00:01:53]} 26. Kxb2 {[%clk 00:38:37]} {[%emt
00:00:26]} Qc3+ {[%clk 00:29:46]} {[%emt 00:00:14]} 27. Kb1 {[%clk 00:39:00]}
{[%emt 00:00:08]} Qb4+ {[%clk 00:28:49]} {[%emt 00:01:26]} 28. Ka1 {[%clk
00:39:20]} {[%emt 00:00:10]} Qc3+ {[%emt 00:00:05]} 29. Kb1 {[%emt 00:00:13]}
Rc4 {[%emt 00:00:01]} 1/2-1/2

[Event "Schack-SM 2024: Veteran-SM 65+"]
[Site "Fortnox Arena, Hejaregatan 5, Vaxjo, Sweden"]
[Date "2024.07.06"]
[Round "8.4"]
[White "Malmdin, Nils-Ake"]
[Black "Dolata, Henryk"]
[Result "1-0"]
[TimeControl "90 minutes for 40 moves + 30 minutes for the rest of the game + 30 seconds per move from move one."]
[WhiteTitle "FM"]
[WhiteElo "2064"]
[BlackElo "1989"]

1. e4 {[%clk 01:30:40]} {[%emt 00:00:19]} e6 {[%clk 01:30:30]} {[%emt
00:00:31]} 2. d4 {[%clk 01:30:55]} {[%emt 00:00:13]} d5 {[%clk 01:30:51]}
{[%emt 00:00:10]} 3. e5 {[%clk 01:30:53]} {[%emt 00:00:32]} b6 {[%clk
01:30:04]} {[%emt 00:01:18]} 4. c3 {[%clk 01:31:05]} {[%emt 00:00:17]} Qd7
{[%clk 01:29:27]} {[%emt 00:01:07]} 5. Nf3 {[%clk 01:27:31]} {[%emt 00:04:03]}
Ne7 {[%clk 01:26:29]} {[%emt 00:03:30]} 6. a4 {[%clk 01:18:05]} {[%emt
00:09:55]} a5 {[%clk 01:25:33]} {[%emt 00:01:26]} 7. Na3 {[%clk 01:15:50]}
{[%emt 00:02:45]} c6 {[%clk 01:19:28]} {[%emt 00:06:35]} 8. b3 {[%clk
01:07:21]} {[%emt 00:08:58]} Ba6 {[%clk 00:52:30]} {[%emt 00:27:29]} 9. Bd3
{[%clk 01:03:01]} {[%emt 00:04:49]} Bxd3 {[%clk 00:50:41]} {[%emt 00:02:21]} 10.
Qxd3 {[%clk 01:03:19]} {[%emt 00:00:10]} Na6 {[%clk 00:47:11]} {[%emt
00:04:02]} 11. O-O {[%clk 00:58:13]} {[%emt 00:05:33]} Nc7 {[%clk 00:43:45]}
{[%emt 00:03:59]} 12. Nc2 {[%clk 00:56:56]} {[%emt 00:01:46]} Nf5 {[%clk
00:42:31]} {[%emt 00:01:44]} 13. g4 {[%clk 00:52:28]} {[%emt 00:04:57]} Ne7
{[%clk 00:41:22]} {[%emt 00:01:40]} 14. Bd2 {[%clk 00:46:48]} {[%emt 00:06:09]}
f5 {[%clk 00:36:23]} {[%emt 00:05:30]} 15. exf6 {[%clk 00:35:02]} {[%emt
00:12:16]} gxf6 {[%clk 00:36:23]} {[%emt 00:00:32]} 16. Kh1 {[%clk 00:35:19]}
{[%emt 00:00:10]} Ng6 {[%clk 00:30:07]} {[%emt 00:06:47]} 17. Rfe1 {[%clk
00:29:36]} {[%emt 00:06:12]} Bd6 {[%clk 00:29:42]} {[%emt 00:00:55]} 18. Bh6
{[%clk 00:25:02]} {[%emt 00:05:03]} O-O-O {[%clk 00:26:01]} {[%emt 00:04:13]}
19. Ne3 {[%clk 00:18:47]} {[%emt 00:06:44]} Rdg8 {[%clk 00:18:59]} {[%emt
00:07:32]} 20. b4 {[%clk 00:18:58]} {[%emt 00:00:20]} Bf4 {[%clk 00:16:27]}
{[%emt 00:03:01]} 21. Bxf4 {[%clk 00:18:41]} {[%emt 00:00:47]} Nxf4 {[%clk
00:16:56]} {[%emt 00:00:02]} 22. Qf1 {[%clk 00:18:46]} {[%emt 00:00:22]} h5
{[%clk 00:17:03]} {[%emt 00:00:25]} 23. g5 {[%clk 00:18:48]} {[%emt 00:00:28]}
Qh7 {[%clk 00:14:50]} {[%emt 00:02:44]} 24. Ng2 {[%clk 00:17:46]} {[%emt
00:01:31]} fxg5 {[%clk 00:14:09]} {[%emt 00:01:13]} 25. bxa5 {[%clk 00:17:58]}
{[%emt 00:00:18]} bxa5 {[%clk 00:14:22]} {[%emt 00:00:17]} 26. Ne5 {[%clk
00:17:43]} {[%emt 00:00:44]} Rf8 {[%clk 00:10:05]} {[%emt 00:04:47]} 27. Ra2
{[%clk 00:16:39]} {[%emt 00:01:33]} Rf5 {[%clk 00:06:40]} {[%emt 00:03:57]} 28.
Nxf4 {[%clk 00:10:47]} {[%emt 00:06:19]} Rxf4 {[%clk 00:05:47]} {[%emt
00:01:26]} 29. Rb2 {[%clk 00:10:37]} {[%emt 00:00:37]} Rhf8 {[%clk 00:05:11]}
{[%emt 00:01:08]} 30. Reb1 {[%clk 00:10:14]} {[%emt 00:00:52]} Kd8 {[%clk
00:04:04]} {[%emt 00:01:38]} 31. Rb8+ {[%clk 00:04:23]} {[%emt 00:06:20]} Ke7
{[%clk 00:04:33]} {[%emt 00:00:02]} 32. Nxc6+ {[%clk 00:03:59]} {[%emt
00:00:54]} Kd6 {[%clk 00:04:17]} {[%emt 00:00:44]} 33. Rxf8 {[%clk 00:04:24]}
{[%emt 00:00:06]} Rxf8 {[%clk 00:04:13]} {[%emt 00:00:35]} 34. Ne5 {[%clk
00:04:48]} {[%emt 00:00:06]} g4 {[%clk 00:03:20]} {[%emt 00:01:24]} 35. Rb6+
{[%clk 00:04:29]} {[%emt 00:00:47]} Ke7 {[%clk 00:03:20]} {[%emt 00:00:31]} 36.
Rb7 {[%clk 00:04:25]} {[%emt 00:00:33]} Kd6 {[%clk 00:03:37]} {[%emt 00:00:13]}
37. Rb6+ {[%clk 00:04:07]} {[%emt 00:00:48]} Ke7 {[%clk 00:04:02]} {[%emt
00:00:06]} 38. Rb7 {[%clk 00:03:43]} {[%emt 00:00:55]} Kd6 {[%clk 00:03:50]}
{[%emt 00:00:40]} 39. Kg1 {[%clk 00:02:21]} {[%emt 00:01:52]} Ra8 {[%clk
00:02:57]} {[%emt 00:01:25]} 40. Qb5 {[%clk 00:01:28]} 1-0

[Event "Schack-SM 2024: Veteran-SM 65+"]
[Site "Fortnox Arena, Hejaregatan 5, Vaxjo, Sweden"]
[Date "2024.07.05"]
[Round "7.1"]
[White "Engstrom, Kaj"]
[Black "Wedin, Svante"]
[Result "1-0"]
[TimeControl "90 minutes for 40 moves + 30 minutes for the rest of the game + 30 seconds per move from move one."]
[WhiteElo "2163"]
[BlackElo "1907"]

1. e4 {[%emt 15:37:59]} c5 {[%clk 01:30:49]} {[%emt 00:00:09]} 2. Nf3 {[%clk
01:30:55]} {[%emt 00:00:06]} g6 {[%clk 01:31:14]} {[%emt 00:00:05]} 3. Bc4
{[%clk 01:30:54]} {[%emt 00:00:31]} Nc6 {[%clk 01:30:49]} {[%emt 00:00:54]} 4.
O-O {[%clk 01:30:27]} {[%emt 00:00:57]} Bg7 {[%clk 01:31:15]} {[%emt 00:00:05]}
5. Re1 {[%clk 01:29:46]} {[%emt 00:01:10]} d6 {[%clk 01:29:35]} {[%emt
00:02:11]} 6. c3 {[%clk 01:29:01]} {[%emt 00:01:15]} Bg4 {[%clk 01:28:09]}
{[%emt 00:01:56]} 7. Bxf7+ {[%clk 01:28:17]} {[%emt 00:01:15]} Kd7 {[%clk
01:26:29]} {[%emt 00:02:10]} 8. Qb3 {[%clk 01:14:52]} {[%emt 00:13:54]} Na5
{[%clk 01:19:29]} {[%emt 00:07:30]} 9. Qb5+ {[%clk 01:10:53]} {[%emt 00:04:30]}
Kc8 {[%clk 01:19:41]} {[%emt 00:00:16]} 10. Ng5 {[%clk 01:07:11]} {[%emt
00:04:12]} a6 {[%clk 01:14:32]} {[%emt 00:05:40]} 11. Qd3 {[%clk 01:06:09]}
{[%emt 00:01:32]} Nh6 {[%clk 01:06:11]} {[%emt 00:08:51]} 12. Be6+ {[%clk
00:58:31]} {[%emt 00:08:07]} Bxe6 {[%clk 01:06:01]} {[%emt 00:00:41]} 13. Nxe6
{[%clk 00:58:58]} {[%emt 00:00:03]} Qg8 {[%clk 01:06:18]} {[%emt 00:00:14]} 14.
Qh3 {[%clk 00:59:01]} {[%emt 00:00:26]} Kb8 {[%clk 01:05:51]} {[%emt 00:00:56]}
15. d4 {[%clk 00:58:19]} {[%emt 00:01:14]} Nf7 {[%clk 01:01:08]} {[%emt
00:05:12]} 16. dxc5 {[%clk 00:57:40]} {[%emt 00:01:09]} Bf6 {[%clk 01:00:03]}
{[%emt 00:01:34]} 17. cxd6 {[%clk 00:50:44]} {[%emt 00:07:26]} exd6 {[%clk
00:58:37]} {[%emt 00:01:56]} 18. Na3 {[%clk 00:49:36]} {[%emt 00:01:39]} Qc8
{[%clk 00:55:15]} {[%emt 00:03:51]} 19. Be3 {[%clk 00:49:12]} {[%emt 00:00:54]}
Nc4 {[%clk 00:48:06]} {[%emt 00:07:39]} 20. Nxc4 {[%clk 00:46:49]} {[%emt
00:02:53]} Qxc4 {[%clk 00:47:50]} {[%emt 00:00:46]} 21. Bd4 {[%clk 00:40:29]}
{[%emt 00:06:51]} Bxd4 {[%clk 00:46:45]} {[%emt 00:01:35]} 22. Nxd4 {[%clk
00:39:47]} {[%emt 00:01:11]} Ka7 {[%clk 00:45:22]} {[%emt 00:01:53]} 23. Qe3
{[%clk 00:36:04]} {[%emt 00:04:13]} b6 {[%clk 00:44:46]} {[%emt 00:01:06]} 24.
a4 {[%clk 00:36:11]} {[%emt 00:00:24]} a5 {[%clk 00:40:48]} {[%emt 00:04:28]}
25. b3 {[%clk 00:33:59]} {[%emt 00:02:43]} Qc8 {[%clk 00:38:10]} {[%emt
00:03:07]} 26. b4 {[%clk 00:33:01]} {[%emt 00:01:28]} Kb7 {[%clk 00:38:09]}
{[%emt 00:00:29]} 27. f4 {[%clk 00:24:20]} {[%emt 00:09:13]} Qc4 {[%clk
00:34:58]} {[%emt 00:03:40]} 28. e5 {[%clk 00:23:05]} {[%emt 00:01:46]} d5
{[%clk 00:32:01]} {[%emt 00:03:27]} 29. Nb5 {[%clk 00:20:28]} {[%emt 00:03:07]}
Qc6 {[%clk 00:28:05]} {[%emt 00:04:25]} 30. bxa5 {[%clk 00:12:38]} {[%emt
00:08:22]} Rxa5 {[%clk 00:26:17]} {[%emt 00:02:18]} 31. e6 {[%clk 00:12:34]}
{[%emt 00:00:33]} Nd6 {[%clk 00:24:34]} {[%emt 00:02:12]} 32. Nxd6+ {[%clk
00:10:59]} {[%emt 00:02:06]} Qxd6 {[%clk 00:24:50]} {[%emt 00:00:13]} 33. Qe5
{[%clk 00:11:07]} {[%emt 00:00:23]} Qxe5 {[%clk 00:23:45]} {[%emt 00:01:34]} 34.
Rxe5 {[%clk 00:11:33]} {[%emt 00:00:05]} Re8 {[%clk 00:24:03]} {[%emt
00:00:11]} 35. g4 {[%clk 00:11:44]} {[%emt 00:00:20]} Kc7 {[%clk 00:23:02]}
{[%emt 00:01:31]} 36. Kf2 {[%clk 00:09:59]} {[%emt 00:02:14]} Kd6 {[%clk
00:21:37]} {[%emt 00:01:55]} 37. Rb1 {[%clk 00:10:22]} {[%emt 00:00:07]} Rxa4
{[%clk 00:21:19]} {[%emt 00:00:48]} 38. Rxb6+ {[%clk 00:10:39]} {[%emt
00:00:15]} Kc7 {[%clk 00:21:38]} {[%emt 00:00:09]} 39. Rb4 {[%clk 00:11:03]}
{[%emt 00:00:06]} Ra3 {[%clk 00:19:01]} {[%emt 00:03:07]} 40. Re3 {[%clk
00:11:13]} {[%emt 00:00:20]} Ra2+ {[%clk 00:17:54]} {[%emt 00:01:37]} 41. Kg3
{[%clk 00:11:34]} {[%emt 00:00:09]} Kd6 {[%clk 00:17:21]} {[%emt 00:01:04]} 42.
Rb6+ {[%clk 00:11:13]} {[%emt 00:00:52]} Kc7 {[%clk 00:17:30]} {[%emt
00:00:20]} 43. Rb1 {[%clk 00:09:11]} {[%emt 00:02:32]} h5 {[%clk 00:08:31]}
{[%emt 00:09:28]} 44. gxh5 {[%clk 00:08:29]} {[%emt 00:01:12]} gxh5 {[%clk
00:08:52]} {[%emt 00:00:09]} 45. f5 {[%clk 00:05:15]} {[%emt 00:03:45]} Rg8+
{[%clk 00:07:47]} {[%emt 00:01:34]} 46. Kf4 {[%clk 00:00:55]} {[%emt 00:04:48]}
Rf2+ {[%clk 00:06:00]} {[%emt 00:02:19]} 47. Rf3 {[%clk 00:24:49]} {[%emt
00:06:36]} Rxh2 {[%clk 00:32:11]} {[%emt 00:04:19]} 48. Ke5 {[%clk 00:23:38]}
{[%emt 00:01:41]} Kc6 {[%clk 00:31:39]} {[%emt 00:01:02]} 49. Re1 {[%clk
00:18:26]} {[%emt 00:05:43]} Rhg2 {[%clk 00:24:41]} {[%emt 00:07:27]} 50. f6
{[%clk 00:18:31]} {[%emt 00:00:26]} R2g5+ {[%clk 00:23:33]} {[%emt 00:01:36]}
51. Rf5 {[%clk 00:18:50]} {[%emt 00:00:12]} Rxf5+ {[%clk 00:22:37]} {[%emt
00:01:27]} 52. Kxf5 {[%clk 00:19:11]} {[%emt 00:00:09]} Kd6 {[%clk 00:22:52]}
{[%emt 00:00:15]} 53. e7 {[%clk 00:18:38]} {[%emt 00:01:02]} 1-0

[Event "Schack-SM 2024: Veteran-SM 65+"]
[Site "Fortnox Arena, Hejaregatan 5, Vaxjo, Sweden"]
[Date "2024.07.05"]
[Round "7.2"]
[White "Hedin, Gunnar"]
[Black "Gillefalk, Bjorn"]
[Result "1-0"]
[TimeControl "90 minutes for 40 moves + 30 minutes for the rest of the game + 30 seconds per move from move one."]
[WhiteElo "2064"]
[BlackElo "2063"]

1. d4 {[%clk 01:30:57]} {[%emt 00:00:03]} Nf6 {[%clk 01:30:54]} {[%emt
00:00:06]} 2. c4 {[%clk 01:31:23]} {[%emt 00:00:04]} e6 {[%clk 01:31:19]}
{[%emt 00:00:06]} 3. Nc3 {[%clk 01:31:24]} {[%emt 00:00:28]} Bb4 {[%clk
01:31:40]} {[%emt 00:00:06]} 4. e3 {[%clk 01:31:50]} {[%emt 00:00:07]} O-O
{[%clk 01:31:49]} {[%emt 00:00:21]} 5. Bd3 {[%clk 01:31:35]} {[%emt 00:00:45]}
d5 {[%clk 01:31:50]} {[%emt 00:00:29]} 6. cxd5 {[%clk 01:31:07]} {[%emt
00:00:58]} exd5 {[%clk 01:32:10]} {[%emt 00:00:10]} 7. Nge2 {[%clk 01:31:24]}
{[%emt 00:00:13]} Bd6 {[%clk 01:25:02]} {[%emt 00:07:39]} 8. f3 {[%clk
01:25:53]} {[%emt 00:06:01]} a6 {[%clk 01:19:22]} {[%emt 00:06:10]} 9. O-O
{[%emt 00:02:13]} c5 {[%clk 01:18:44]} {[%emt 00:01:06]} 10. Qe1 {[%clk
01:11:12]} {[%emt 00:13:29]} Nc6 {[%clk 01:13:04]} {[%emt 00:06:10]} 11. Qh4
{[%clk 01:04:53]} {[%emt 00:06:48]} Ne7 {[%clk 01:02:26]} {[%emt 00:11:08]} 12.
g4 {[%clk 00:55:29]} {[%emt 00:09:55]} Ng6 {[%clk 00:50:44]} {[%emt 00:12:12]}
13. Qf2 {[%clk 00:49:12]} {[%emt 00:06:47]} Bxg4 {[%clk 00:46:48]} {[%emt
00:04:26]} 14. fxg4 {[%clk 00:48:41]} {[%emt 00:01:01]} Nxg4 {[%clk 00:43:36]}
{[%emt 00:03:41]} 15. Qg2 {[%clk 00:33:53]} {[%emt 00:15:17]} Bxh2+ {[%clk
00:37:44]} {[%emt 00:06:23]} 16. Kh1 {[%clk 00:29:15]} {[%emt 00:05:09]} Qh4
{[%clk 00:35:55]} {[%emt 00:02:18]} 17. Rf3 {[%clk 00:24:58]} {[%emt 00:04:47]}
Bd6+ {[%clk 00:23:50]} {[%emt 00:12:36]} 18. Kg1 {[%clk 00:24:32]} {[%emt
00:00:56]} Qe1+ {[%clk 00:20:01]} {[%emt 00:04:18]} 19. Rf1 {[%clk 00:22:25]}
{[%emt 00:02:37]} Bh2+ {[%clk 00:18:22]} {[%emt 00:02:09]} 20. Qxh2 {[%clk
00:16:58]} {[%emt 00:05:58]} Qxf1+ {[%clk 00:18:41]} {[%emt 00:00:11]} 21. Kxf1
{[%clk 00:17:27]} Nxh2+ {[%clk 00:19:00]} {[%emt 00:00:10]} 22. Kg2 {[%clk
00:17:47]} {[%emt 00:00:09]} cxd4 {[%clk 00:13:32]} {[%emt 00:05:59]} 23. Nxd4
{[%clk 00:16:04]} {[%emt 00:02:13]} Ng4 {[%clk 00:13:56]} {[%emt 00:00:06]} 24.
Nxd5 {[%clk 00:14:39]} {[%emt 00:01:55]} Rad8 {[%clk 00:13:16]} {[%emt
00:01:10]} 25. e4 {[%clk 00:13:40]} {[%emt 00:01:29]} N4e5 {[%clk 00:07:27]}
{[%emt 00:06:19]} 26. Be2 {[%clk 00:13:45]} {[%emt 00:00:26]} Rfe8 {[%clk
00:06:08]} {[%emt 00:01:48]} 27. Be3 {[%clk 00:10:13]} {[%emt 00:04:02]} Nf8
{[%clk 00:04:39]} {[%emt 00:02:00]} 28. Rc1 {[%clk 00:09:10]} {[%emt 00:01:33]}
Ne6 {[%clk 00:03:14]} {[%emt 00:01:55]} 29. Nf5 {[%clk 00:08:53]} {[%emt
00:00:47]} g6 {[%clk 00:03:09]} {[%emt 00:00:35]} 30. Nf6+ {[%clk 00:08:29]}
{[%emt 00:00:54]} 1-0